bitfinex-derivatives/quotes_SOLF0:USTF0_20250712
["timestamp","ask_amount","ask_price","bid_price","bid_amount"]
[1752309193902,3.37,162.41,162.39,6.19429878]
[1752309194501,3.37,162.41,162.39,0.03909878]
[1752309196102,3.37,162.41,162.4,6.1549]
[1752309197308,3.37,162.41,162.39,6.19429878]
[1752309200310,3.37,162.41,162.4,6.1549]
[1752309200708,5.14059878,162.46,162.39,2.37174554]
[1752309201011,7.47324554,162.5,162.42,2.54]
[1752309201309,3.3,162.49,162.47,6.1522]
[1752309201513,3.3,162.49,162.45,2.54]
[1752309201703,3.3,162.49,162.45,2.33264676]
[1752309201905,3.3,162.48,162.47,4.87264676]
[1752309203109,3.3,162.48,162.47,11.02494676]
[1752309203409,3.3,162.48,162.46,0.04324647]
[1752309203609,3.3,162.48,162.47,6.1523]
[1752309204510,3.3,162.48,162.46,0.04324647]
[1752309205010,9.4522,162.48,162.46,0.04324647]
[1752309205208,3.3,162.47,162.46,0.04324647]
[1752309207511,3.3,162.47,162.46,6.19594647]
[1752309207707,3.3,162.47,162.46,0.04324647]
[1752309209310,3.3,162.47,162.46,6.19594647]
[1752309210100,3.3,162.47,162.46,0.04324647]
[1752309210313,5.14059878,162.47,162.42,2.33264676]
[1752309210507,5.14059878,162.47,162.42,4.87264676]
[1752309210508,3.3,162.46,162.42,4.87264676]
[1752309210710,3.3,162.46,162.44,6.1531]
[1752309211312,3.3,162.46,162.4,2.54]
[1752309211516,3.3,162.46,162.4,4.87264676]
[1752309212414,3.3,162.46,162.44,6.1531]
[1752309212613,3.3,162.46,162.41,2.54]
[1752309212909,3.3,162.44,162.41,2.54]
[1752309213117,3.3,162.44,162.43,6.1538]
[1752309218017,3.3,162.44,162.43,8.6938]
[1752309219121,8.44059878,162.44,162.43,6.1538]
[1752309219414,3.3,162.44,162.43,6.1538]
[1752309221716,3.3,162.44,162.36,2.54]
[1752309221919,3.3,162.44,162.38,2.54]
[1752309222120,3.3,162.43,162.38,2.54]
[1752309222418,3.3,162.43,162.41,6.1543]
[1752309222612,0.04263627,162.42,162.41,6.1543]
[1752309222808,3.34263627,162.42,162.41,6.1543]
[1752309224923,3.43,162.41,162.31,2.54]
[1752309225123,3.43,162.41,162.25,22.61523929]
[1752309225124,3.43,162.38,162.34,2.54]
[1752309225317,3.43,162.38,162.37,8.696]
[1752309225522,3.47066075,162.38,162.32,2.33618479]
[1752309225721,3.47066075,162.38,162.33,2.54]
[1752309226222,3.43,162.37,162.36,6.1562]
[1752309226521,3.47066075,162.38,162.35,2.54]
[1752309226716,3.47066075,162.38,162.37,6.1561]
[1752309226917,3.43,162.38,162.37,8.6961]
[1752309227320,3.43,162.38,162.37,6.1561]
[1752309227822,3.43,162.38,162.37,8.6961]
[1752309228518,3.43,162.38,162.34,2.54]
[1752309229327,6.156,162.38,162.34,8.6971]
[1752309229621,3.43,162.37,162.34,8.6971]
[1752309229817,8.61615522,162.39,162.33,2.33618479]
[1752309230123,3.43,162.37,162.36,2.54]
[1752309230422,3.43,162.37,162.36,8.6962]
[1752309230827,0.04416138,162.38,162.36,2.54]
[1752309231126,0.04416138,162.38,162.37,8.6961]
[1752309233128,3.47416138,162.38,162.37,8.6961]
[1752309233821,3.47416138,162.38,162.37,6.1561]
[1752309235225,3.47416138,162.38,162.37,8.6961]
[1752309236426,0.04416138,162.38,162.37,8.6961]
[1752309236623,3.47416138,162.38,162.37,6.1561]
[1752309237218,3.47416138,162.38,162.36,6.1563]
[1752309237427,3.47416138,162.38,162.35,2.54]
[1752309237625,3.47416138,162.38,162.36,2.54]
[1752309238524,3.47416138,162.38,162.37,8.6961]
[1752309239224,3.47416138,162.38,162.37,6.1561]
[1752309240533,3.47416138,162.38,162.32,2.54]
[1752309240929,5.81034617,162.38,162.32,2.54]
[1752309241228,11.96624617,162.38,162.34,6.1569]
[1752309241433,3.43,162.37,162.34,6.1569]
[1752309241629,3.43,162.37,162.32,2.54]
[1752309241934,3.43,162.36,162.34,6.1571]
[1752309242230,3.43,162.36,162.33,6.1576]
[1752309242430,3.43,162.36,162.3,2.54]
[1752309242824,0.04445778,162.35,162.3,2.54]
[1752309243028,3.43,162.34,162.3,2.54]
[1752309243736,0.04445778,162.35,162.34,6.1572]
[1752309244330,3.47445778,162.35,162.34,6.1572]
[1752309244833,3.47445778,162.35,162.32,2.54]
[1752309245935,3.47445778,162.35,162.33,6.1574]
[1752309246232,3.47445778,162.35,162.25,179.75189059]
[1752309246441,9.63125778,162.35,162.32,6.1577]
[1752309246734,3.43,162.34,162.32,6.1577]
[1752309247135,3.43,162.34,162.33,6.1576]
[1752309250838,3.43,162.34,162.33,8.6976]
[1752309252135,0.04445778,162.35,162.34,6.1572]
[1752309252342,0.04445778,162.35,162.34,8.6972]
[1752309256448,3.58445778,162.35,162.34,6.1572]
[1752309256848,3.58445778,162.35,162.34,8.7072]
[1752309257346,0.04445778,162.35,162.34,8.7072]
[1752309258649,3.58445778,162.35,162.34,8.7072]
[1752309260146,0.04445778,162.35,162.34,8.7072]
[1752309261254,5.1188059,162.42,162.38,6.1555]
[1752309261449,11.2731059,162.42,162.38,6.1555]
[1752309261652,6.1543,162.42,162.36,2.55]
[1752309261852,3.54,162.41,162.38,6.1555]
[1752309262248,3.54,162.4,162.38,6.1555]
[1752309262448,3.54,162.4,162.37,6.156]
[1752309262648,3.54,162.42,162.38,2.37870898]
[1752309262848,3.54,162.42,162.39,6.1551]
[1752309263046,3.54,162.42,162.36,2.33591897]
[1752309263246,3.54,162.42,162.39,0.0445662]
[1752309263749,3.54,162.42,162.39,2.5945662]
[1752309265156,3.54,162.42,162.41,6.1545]
[1752309266054,3.54,162.42,162.39,0.0445662]
[1752309266055,8.67208112,162.42,162.39,0.0445662]
[1752309266249,3.54,162.41,162.39,0.0445662]
[1752309266649,3.54,162.41,162.39,6.1996662]
[1752309268757,3.54,162.41,162.39,0.0445662]
[1752309268952,8.67208112,162.41,162.39,0.0445662]
[1752309269153,3.54,162.4,162.39,0.0445662]
[1752309269656,3.54,162.4,162.39,6.1998662]
[1752309270652,3.54,162.4,162.39,0.0445662]
[1752309271560,3.54,162.39,162.32,4.88563538]
[1752309271761,3.54,162.39,162.33,2.55]
[1752309271959,3.54,162.38,162.33,2.55]
[1752309272262,3.54,162.38,162.36,6.1561]
[1752309273759,3.54,162.38,162.37,6.1561]
[1752309274952,8.67208112,162.38,162.36,6.1563]
[1752309275254,0.04557878,162.39,162.33,2.55]
[1752309275255,3.54,162.36,162.33,2.55]
[1752309275660,3.54,162.36,162.34,6.1572]
[1752309276162,3.54,162.36,162.33,2.55]
[1752309277264,3.54,162.36,162.35,6.1568]
[1752309278660,8.67208112,162.36,162.35,6.1568]
[1752309279055,3.54,162.35,162.32,2.55]
[1752309279660,3.5859786,162.35,162.34,6.1572]
[1752309281765,5.92319669,162.35,162.28,2.55]
[1752309281968,5.13208112,162.34,162.28,2.55]
[1752309282165,3.54,162.33,162.31,6.1581]
[1752309282460,3.58480538,162.33,162.31,6.1581]
[1752309282966,3.58480538,162.33,162.32,6.158]
[1752309284371,5.92295964,162.33,162.27,2.55]
[1752309284664,2.33815426,162.31,162.25,2.55]
[1752309284866,3.44,162.3,162.25,2.55]
[1752309285164,3.44,162.3,162.28,6.1592]
[1752309285563,3.48284231,162.29,162.28,6.1592]
[1752309287172,3.44,162.28,162.18,2.54]
[1752309287371,3.44,162.28,162.17,12.327]
[1752309287372,3.44,162.26,162.21,2.54]
[1752309287764,0.0431104,162.25,162.21,2.54]
[1752309288167,3.44,162.24,162.21,2.54]
[1752309288764,0.0431104,162.25,162.24,6.161]
[1752309288970,3.44,162.31,162.24,2.33815426]
[1752309289172,3.44,162.3,162.27,2.54]
[1752309289364,3.44,162.3,162.19,178.68]
[1752309289571,3.44,162.3,162.24,2.54]
[1752309289972,3.44,162.3,162.29,6.1591]
[1752309290371,3.44,162.3,162.26,2.54]
[1752309290675,3.44,162.32,162.26,2.54]
[1752309291973,3.44,162.33,162.3,2.54]
[1752309292566,3.44,162.33,162.3,2.58224197]
[1752309293171,3.44,162.35,162.33,2.54]
[1752309293371,3.44,162.35,162.31,2.33815426]
[1752309293673,3.44,162.4,162.34,2.54]
[1752309294171,6.1548,162.41,162.37,8.49415426]
[1752309294376,3.44,162.43,162.39,2.54]
[1752309294971,3.44,162.43,162.39,2.584786]
[1752309295169,3.44,162.43,162.39,0.044786]
[1752309296165,3.44,162.43,162.4,6.1546]
[1752309297473,9.5938,162.43,162.4,6.1546]
[1752309297774,3.44,162.42,162.4,6.1546]
[1752309297972,3.44,162.42,162.39,6.199986]
[1752309298276,3.44,162.4,162.39,0.044786]
[1752309300874,3.44,162.39,162.37,6.1557]
[1752309301478,9.5953,162.39,162.36,6.1564]
[1752309301675,3.44,162.38,162.36,6.1564]
[1752309302570,3.48008703,162.39,162.37,2.54]
[1752309302876,0.04008703,162.39,162.37,2.54]
[1752309303073,0.04008703,162.39,162.35,2.33470105]
[1752309303376,3.48008703,162.39,162.38,8.6957]
[1752309303571,0.04008703,162.39,162.38,8.6957]
[1752309303779,3.44,162.44,162.43,8.6938]
[1752309304967,3.44,162.44,162.43,6.1538]
[1752309306888,3.44,162.5,162.44,2.54]
[1752309307178,3.44,162.5,162.45,4.87470105]
[1752309307675,3.44,162.5,162.46,2.57938657]
[1752309308280,3.44,162.5,162.46,0.03938657]
[1752309308777,6.1514,162.5,162.46,6.19178657]
[1752309308971,3.44,162.49,162.46,0.03938657]
[1752309309173,3.44,162.52,162.46,2.57938657]
[1752309309772,6.19640548,162.51,162.48,6.1518]
[1752309310077,3.44,162.5,162.48,6.1518]
[1752309310278,3.44,162.5,162.46,2.57938657]
[1752309310485,3.44,162.49,162.47,6.1522]
[1752309310678,3.44,162.49,162.46,0.03938657]
[1752309311378,3.44,162.49,162.46,6.19178657]
[1752309312782,3.44,162.48,162.46,2.57938657]
[1752309312985,3.44,162.5,162.46,4.91408762]
[1752309313289,3.44,162.49,162.48,8.6916]
[1752309313874,3.44,162.49,162.48,6.1516]
[1752309314886,3.44,162.49,162.48,8.6916]
[1752309316485,0.04540548,162.51,162.49,8.6915]
[1752309316486,3.63,162.5,162.49,8.6915]
[1752309316792,0.04540548,162.51,162.49,2.54]
[1752309316988,0.04540548,162.51,162.5,4.87470105]
[1752309318193,0.04540548,162.51,162.5,11.02580105]
[1752309320790,3.67540548,162.51,162.5,11.02580105]
[1752309321192,3.67540548,162.51,162.5,2.33470105]
[1752309321394,0.04540548,162.51,162.48,2.33470105]
[1752309321592,3.63,162.5,162.49,2.54]
[1752309321986,3.67540548,162.51,162.48,2.33470105]
[1752309322183,0.04540548,162.51,162.5,4.87470105]
[1752309322791,0.04540548,162.51,162.5,11.02580105]
[1752309323795,3.63,162.54,162.53,6.15]
[1752309323995,3.63,162.54,162.53,11.02470105]
[1752309324296,3.63,162.54,162.53,2.33470105]
[1752309326695,9.7799,162.54,162.52,0.04481809]
[1752309326901,3.63,162.54,162.52,0.04481809]
[1752309328097,9.7797,162.54,162.52,0.04481809]
[1752309328392,3.63,162.53,162.52,0.04481809]
[1752309331798,9.78,162.53,162.52,0.04481809]
[1752309333707,6.1508,162.51,162.48,2.33470105]
[1752309334003,6.1508,162.51,162.32,10.29443929]
[1752309334004,3.63,162.5,162.42,2.33470105]
[1752309334201,6.1529,162.46,162.43,6.1535]
[1752309334416,3.63,162.48,162.4,4.92470105]
[1752309334902,3.63,162.44,162.42,6.19370299]
[1752309335804,9.7834,162.44,162.42,0.03980299]
[1752309335997,3.63,162.43,162.42,0.03980299]
[1752309338407,3.63,162.43,162.42,6.19400299]
[1752309338612,2.33470105,162.49,162.42,0.03980299]
[1752309338805,3.63,162.44,162.43,2.59]
[1752309339002,3.63,162.44,162.43,8.7436]
[1752309340002,6.152,162.48,162.44,6.1532]
[1752309340308,3.63,162.45,162.44,6.1532]
[1752309341013,6.152,162.48,162.45,6.1529]
[1752309341310,3.63,162.46,162.45,8.7429]
[1752309342108,3.63,162.46,162.45,6.1529]
[1752309344013,3.63,162.46,162.45,8.7429]
[1752309344714,3.4,162.48,162.47,6.1521]
[1752309346413,3.4,162.5,162.49,6.1513]
[1752309346611,3.4,162.5,162.49,11.07600105]
[1752309348408,2.33470105,162.58,162.49,2.33470105]
[1752309348617,3.4,162.57,162.49,4.92470105]
[1752309349110,3.4,162.57,162.51,0.04518105]
[1752309349714,6.1495,162.55,162.51,6.19578105]
[1752309349914,3.4,162.54,162.51,6.19578105]
[1752309350717,6.1496,162.54,162.51,6.19578105]
[1752309350916,3.4,162.53,162.51,6.19578105]
[1752309351614,3.4,162.53,162.51,0.04518105]
[1752309353119,6.1504,162.52,162.51,0.04518105]
[1752309353320,9.5504,162.52,162.51,0.04518105]
[1752309358318,3.4,162.52,162.51,0.04518105]
[1752309361620,9.5504,162.52,162.51,0.04518105]
[1752309362023,3.4,162.52,162.47,2.33470105]
[1752309362215,3.4,162.48,162.46,6.1525]
[1752309362617,3.4,162.48,162.45,2.33470105]
[1752309362817,3.4,162.48,162.43,4.92470105]
[1752309363425,3.4,162.46,162.43,4.92470105]
[1752309363824,9.5527,162.46,162.43,11.07830105]
[1752309364025,3.4,162.45,162.43,4.92470105]
[1752309364220,3.4,162.44,162.43,4.92470105]
[1752309365127,3.4,162.44,162.43,11.07850105]
[1752309365722,3.4,162.44,162.3,178.14]
[1752309365723,3.4,162.46,162.3,190.4573]
[1752309365926,5.73470105,162.46,162.38,4.92470105]
[1752309366225,2.33470105,162.46,162.38,4.92470105]
[1752309366425,3.4,162.43,162.38,4.92470105]
[1752309367126,6.1543,162.42,162.39,6.155]
[1752309367327,3.4,162.41,162.39,6.155]
[1752309368328,3.4,162.41,162.39,8.745]
[1752309368628,3.4,162.42,162.39,8.745]
[1752309370328,3.4,162.42,162.39,2.59]
[1752309370528,0.04564155,162.44,162.41,2.59]
[1752309370727,0.04564155,162.44,162.43,2.33470105]
[1752309370925,3.4,162.46,162.43,2.33470105]
[1752309371234,0.03982443,162.45,162.44,8.7431]
[1752309375842,3.53982443,162.45,162.44,8.7431]
[1752309376042,0.03982443,162.45,162.44,8.7431]
[1752309378745,3.53982443,162.45,162.44,8.7431]
[1752309379043,3.53982443,162.45,162.44,6.1531]
[1752309379245,3.53982443,162.45,162.44,8.7231]
[1752309380046,3.53982443,162.45,162.43,2.33470105]
[1752309380446,3.53982443,162.45,162.42,6.1538]
[1752309381147,3.53982443,162.45,162.42,8.7238]
[1752309382044,3.53982443,162.45,162.43,6.1537]
[1752309382243,3.5,162.44,162.43,2.57]
[1752309383449,3.5,162.44,162.43,8.7238]
[1752309384746,3.5,162.44,162.43,6.1538]
[1752309386455,3.5,162.44,162.34,544.0337]
[1752309386456,3.5,162.44,162.35,2.57]
[1752309386752,3.5,162.44,162.4,2.57]
[1752309387051,0.04713632,162.41,162.4,8.7249]
[1752309387541,3.54713632,162.41,162.4,8.7249]
[1752309387945,3.5,162.43,162.42,6.1539]
[1752309392657,6.1533,162.45,162.42,6.1539]
[1752309394658,3.5,162.43,162.42,6.1539]
[1752309395058,3.5,162.43,162.42,8.7239]
[1752309395258,3.5,162.48,162.44,2.57]
[1752309395457,3.5,162.48,162.45,2.33328701]
[1752309395657,3.5,162.48,162.45,4.90328701]
[1752309395860,3.5,162.48,162.45,4.94913581]
[1752309396655,3.5,162.48,162.46,6.1524]
[1752309402660,6.1518,162.49,162.46,6.1524]
[1752309403161,6.152,162.48,162.46,6.1524]
[1752309404362,6.1517,162.49,162.46,6.1524]
[1752309404666,185.63643987,162.53,162.47,6.1522]
[1752309404863,185.63643987,162.53,162.47,2.58]
[1752309405062,178.16,162.53,162.48,6.1517]
[1752309405267,3.41,162.52,162.48,6.19359461]
[1752309405458,6.151,162.51,162.48,6.19359461]
[1752309405761,3.41,162.5,162.48,8.77359461]
[1752309407360,3.41,162.5,162.48,2.62189461]
[1752309407565,3.41,162.5,162.49,11.06406049]
[1752309411662,3.41,162.5,162.48,0.04189461]
[1752309412259,5.74256049,162.49,162.42,5.16949284]
[1752309412464,3.41,162.48,162.41,7.79949284]
[1752309413168,3.41,162.48,162.42,5.16949284]
[1752309413365,6.1533,162.45,162.42,11.32339284]
[1752309413566,3.41,162.44,162.42,7.79949284]
[1752309413761,3.41,162.48,162.43,2.63]
[1752309413965,3.41,162.46,162.45,2.63]
[1752309414366,3.41,162.46,162.45,8.783]
[1752309418570,3.41,162.46,162.45,6.153]
[1752309420573,0.04061223,162.47,162.46,6.1527]
[1752309420772,3.45061223,162.47,162.46,8.7827]
[1752309421168,0.04061223,162.47,162.46,8.7827]
[1752309422771,3.41,162.49,162.48,6.1519]
[1752309422974,3.41,162.51,162.49,2.63]
[1752309423173,3.41,162.51,162.5,4.96245222]
[1752309424174,3.41,162.51,162.5,11.11355222]
[1752309424972,3.41,162.51,162.5,2.33245222]
[1752309425176,3.41,162.51,162.49,0.04470689]
[1752309426075,3.41,162.51,162.49,6.19620689]
[1752309426571,9.5608,162.51,162.49,0.04470689]
[1752309426977,3.41,162.5,162.49,0.04470689]
[1752309428076,3.41,162.5,162.49,6.19620689]
[1752309428374,3.41,162.5,162.49,0.04470689]
[1752309428571,9.5611,162.5,162.49,0.04470689]
[1752309428768,3.41,162.5,162.49,0.04470689]
[1752309431781,3.41,162.5,162.49,6.19620689]
[1752309432769,3.41,162.5,162.49,11.15794558]
[1752309432973,540.89024454,162.57,162.49,5.00644558]
[1752309432974,3.41,162.52,162.49,5.00644558]
[1752309433580,3.41,162.52,162.49,2.37644558]
[1752309433780,3.41,162.52,162.5,8.7808]
[1752309434078,3.41,162.52,162.5,6.1508]
[1752309434480,3.41,162.56,162.51,6.1505]
[1752309434683,3.41,162.56,162.49,2.37644558]
[1752309434881,3.41,162.56,162.49,2.33173869]
[1752309435079,3.41,162.56,162.51,0.04468593]
[1752309435275,5.74173869,162.56,162.51,0.04468593]
[1752309435479,3.44,162.55,162.51,0.04468593]
[1752309436373,6.1497,162.54,162.51,0.04468593]
[1752309436580,3.44,162.53,162.51,0.04468593]
[1752309438089,9.59,162.53,162.51,6.19528593]
[1752309438276,3.44,162.52,162.51,6.19528593]
[1752309438985,3.44,162.52,162.51,0.04468593]
[1752309439480,9.5904,162.52,162.51,0.04468593]
[1752309440785,3.44,162.52,162.51,0.04468593]
[1752309441181,3.44,162.52,162.51,6.19548593]
[1752309441382,3.44,162.52,162.51,8.82548593]
[1752309441578,3.44,162.56,162.51,5.00642462]
[1752309441781,9.5892,162.56,162.53,6.1499]
[1752309441982,3.44,162.55,162.51,2.37642462]
[1752309442489,3.44,162.56,162.51,6.19518593]
[1752309443084,3.44,162.55,162.51,6.19518593]
[1752309443783,3.44,162.52,162.51,6.19518593]
[1752309444082,3.44,162.52,162.51,0.04468593]
[1752309444282,9.5904,162.52,162.51,0.04468593]
[1752309444982,187.6304,162.52,162.51,0.04468593]
[1752309445286,187.6304,162.52,162.45,7.49870364]
[1752309445287,3.44,162.49,162.45,4.96173869]
[1752309445488,3.44,162.49,162.46,2.63]
[1752309446188,3.44,162.49,162.47,6.152]
[1752309446377,3.44,162.48,162.47,6.152]
[1752309446686,3.44,162.48,162.45,4.96259473]
[1752309447490,3.44,162.48,162.46,6.1524]
[1752309448087,3.44,162.48,162.47,6.1523]
[1752309454994,3.44,162.48,162.46,6.1525]
[1752309455897,3.44,162.48,162.47,6.1523]
[1752309456602,3.44,162.48,162.46,6.1524]
[1752309458896,3.44,162.48,162.47,6.1523]
[1752309459600,3.44,162.48,162.47,8.7823]
[1752309460497,3.44,162.48,162.47,6.1523]
[1752309461404,3.44,162.48,162.47,8.7823]
[1752309461802,0.04414114,162.49,162.48,6.1519]
[1752309462003,3.48414114,162.49,162.48,8.7819]
[1752309463904,3.48414114,162.49,162.48,6.1519]
[1752309464604,3.48414114,162.49,162.48,8.7819]
[1752309469005,0.04414114,162.49,162.48,8.7819]
[1752309472511,3.35414114,162.49,162.48,8.7819]
[1752309474510,0.04414114,162.49,162.48,8.7819]
[1752309476016,3.35414114,162.49,162.48,8.7819]
[1752309476716,3.35414114,162.49,162.48,6.1519]
[1752309477715,3.35414114,162.49,162.47,2.33264728]
[1752309478416,3.35414114,162.49,162.47,8.48474728]
[1752309478617,3.35414114,162.49,162.47,11.09474728]
[1752309479719,3.35414114,162.49,162.47,8.48474728]
[1752309481417,3.35414114,162.49,162.47,11.09474728]
[1752309481624,3.31,162.48,162.45,2.33264728]
[1752309482121,3.31,162.47,162.45,6.153]
[1752309482312,3.31,162.47,162.44,2.3326765]
[1752309482717,3.31,162.46,162.45,6.1528]
[1752309483421,3.31,162.46,162.44,8.4860765]
[1752309483921,3.31,162.46,162.43,6.1538]
[1752309484129,3.31,162.46,162.41,2.62]
[1752309484325,3.31,162.46,162.43,0.04285123]
[1752309484827,3.35540814,162.46,162.43,0.04285123]
[1752309485225,3.31,162.44,162.43,0.04285123]
[1752309485426,3.31,162.45,162.44,2.62]
[1752309486233,3.31,162.45,162.44,6.1534]
[1752309486527,3.31,162.45,162.43,2.37598234]
[1752309486922,3.31,162.45,162.43,8.52948234]
[1752309487731,3.31,162.45,162.44,6.1534]
[1752309488627,3.31,162.45,162.43,8.52958234]
[1752309489131,3.31,162.45,162.44,6.1534]
[1752309495138,6.1531,162.45,162.43,0.04285123]
[1752309495329,3.32,162.44,162.43,0.04285123]
[1752309496730,9.4734,162.44,162.43,0.04285123]
[1752309502335,3.32,162.41,162.38,2.33313111]
[1752309502542,3.32,162.41,162.38,5.00313111]
[1752309503241,3.32,162.41,162.39,6.155]
[1752309503443,3.32,162.41,162.38,2.33313111]
[1752309503640,3.32,162.41,162.4,8.8247]
[1752309504445,3.36228414,162.42,162.41,8.8245]
[1752309504744,0.04228414,162.42,162.41,11.1585778]
[1752309510346,3.36228414,162.42,162.41,11.1585778]
[1752309510550,3.36228414,162.42,162.41,8.4885778]
[1752309510747,3.36228414,162.42,162.41,6.1545]
[1752309511654,3.36228414,162.42,162.4,6.1548]
[1752309511850,3.36228414,162.42,162.37,2.3340778]
[1752309512046,3.36228414,162.42,162.37,5.0040778]
[1752309512246,6.1546,162.41,162.38,6.1555]
[1752309512448,3.32,162.4,162.37,5.0040778]
[1752309513356,3.32,162.4,162.38,6.1555]
[1752309513854,3.32,162.39,162.38,6.1555]
[1752309515754,3.32,162.39,162.37,6.1559]
[1752309518160,3.32,162.39,162.38,6.1557]
[1752309520163,3.32,162.39,162.37,6.1559]
[1752309521263,3.32,162.39,162.37,2.67]
[1752309522167,3.32,162.39,162.38,6.1557]
[1752309524068,3.32,162.39,162.38,8.8257]
[1752309524264,3.32,162.39,162.37,2.3340778]
[1752309524460,3.32,162.39,162.37,5.0040778]
[1752309524666,3.35,162.45,162.38,2.67]
[1752309524866,3.35,162.44,162.41,5.0040778]
[1752309525170,0.04162832,162.43,162.41,5.0040778]
[1752309525363,3.35,162.42,162.41,11.1585778]
[1752309525960,0.04162832,162.43,162.42,8.8242]
[1752309526759,3.39162832,162.43,162.42,8.4882778]
[1752309526967,0.04162832,162.43,162.42,11.1582778]
[1752309529271,3.39162832,162.43,162.42,11.1582778]
[1752309530565,0.04162832,162.43,162.42,11.1582778]
[1752309532678,0.04162832,162.43,162.42,8.8242]
[1752309532873,3.39162832,162.43,162.42,11.1582778]
[1752309533979,0.04162832,162.43,162.42,11.1582778]
[1752309534980,0.04162832,162.43,162.42,11.15693933]
[1752309535981,3.35,162.47,162.42,2.33273933]
[1752309536176,3.35,162.47,162.43,2.67]
[1752309536577,3.35,162.47,162.42,2.33273933]
[1752309536780,3.35,162.47,162.43,2.67]
[1752309536977,3.35,162.47,162.44,2.33273933]
[1752309537177,3.35,162.47,162.44,8.48583933]
[1752309537479,3.39506564,162.47,162.44,8.48583933]
[1752309538375,3.39506564,162.47,162.45,6.1529]
[1752309539176,0.04506564,162.47,162.46,8.8226]
[1752309539472,0.04506564,162.47,162.46,11.15533933]
[1752309540681,3.35,162.49,162.48,6.1519]
[1752309540870,5.13918636,162.57,162.48,5.00273933]
[1752309541075,3.35,162.52,162.49,2.67]
[1752309541277,3.35,162.52,162.51,2.33100957]
[1752309541472,177.9,162.58,162.52,6.1502]
[1752309541473,6.1494,162.55,162.52,6.1502]
[1752309541677,6.1494,162.55,162.44,5.16696495]
[1752309541678,3.35,162.55,162.54,5.00029921]
[1752309541981,3.35,162.55,162.54,2.33029921]
[1752309543381,3.35,162.55,162.54,5.00029921]
[1752309544095,3.35,162.55,162.54,11.14989921]
[1752309544378,3.35,162.61,162.55,2.67]
[1752309544577,3.35,162.61,162.54,2.32884342]
[1752309544777,3.35,162.57,162.54,6.1494]
[1752309545083,3.35,162.57,162.56,0.04491252]
[1752309545983,9.4985,162.57,162.56,0.04491252]
[1752309547182,6.1496,162.55,162.5,2.67]
[1752309547380,2.32884342,162.59,162.49,2.32884342]
[1752309547381,3.35,162.56,162.49,2.32884342]
[1752309547581,2.32884342,162.56,162.49,2.32884342]
[1752309547886,3.35,162.53,162.5,6.1509]
[1752309548487,6.1504,162.52,162.49,6.1514]
[1752309548686,3.39737456,162.53,162.48,2.67]
[1752309549187,6.1506,162.52,162.48,8.8216]
[1752309549480,3.35,162.51,162.48,8.8216]
[1752309550387,3.35,162.51,162.46,4.99884342]
[1752309550584,3.35,162.51,162.44,4.99884342]
[1752309551187,0.04469636,162.49,162.44,4.99884342]
[1752309551490,3.35,162.48,162.45,2.67]
[1752309551884,3.35,162.48,162.43,2.67]
[1752309552487,0.04428828,162.47,162.43,2.67]
[1752309552785,3.35,162.46,162.43,2.67]
[1752309553184,0.04428828,162.47,162.44,6.1532]
[1752309553392,3.35,162.45,162.44,8.8232]
[1752309555386,3.35,162.45,162.44,6.1532]
[1752309556594,3.35,162.45,162.43,6.1536]
[1752309556791,3.35,162.45,162.37,183.06696495]